bitfinex-derivatives/quotes_BTCF0:USTF0_20250212
["timestamp","ask_amount","ask_price","bid_price","bid_amount"]
[1739331123293,0.208857,95774.0,95773.0,0.00115659]
[1739331123787,0.208857,95774.0,95773.0,0.00015659]
[1739331125497,0.209857,95774.0,95773.0,0.00015659]
[1739331126804,0.3608,95772.0,95709.0,0.3608]
[1739331127103,0.209005,95707.0,95706.0,0.0107932]
[1739331127308,0.209005,95707.0,95705.0,0.3130704]
[1739331129709,0.209005,95707.0,95705.0,0.3140704]
[1739331130711,0.209005,95707.0,95705.0,0.3130704]
[1739331130915,0.209005,95707.0,95705.0,0.3140704]
[1739331131101,0.209005,95707.0,95705.0,0.001]
[1739331131411,0.209005,95707.0,95705.0,0.003]
[1739331132000,0.209005,95707.0,95705.0,0.001]
[1739331132001,0.2090032,95707.0,95705.0,0.001]
[1739331132398,0.07468,95708.0,95688.0,0.01069289]
[1739331132707,0.5698426,95689.0,95680.0,0.2090617]
[1739331133204,0.2090615,95681.0,95678.0,0.01067638]
[1739331133505,0.3608,95679.0,95675.0,0.00010515]
[1739331134607,0.3608,95679.0,95678.0,0.001]
[1739331135215,0.3608,95679.0,95675.0,0.00010515]
[1739331135514,0.3618,95679.0,95675.0,0.01110515]
[1739331136104,0.5708659,95679.0,95675.0,0.01110515]
[1739331136306,0.2090704,95677.0,95675.0,0.01110515]
[1739331136514,0.3608,95676.0,95675.0,0.01510515]
[1739331137215,0.3608,95676.0,95675.0,0.01210515]
[1739331137417,0.3608,95676.0,95675.0,0.00110515]
[1739331138212,0.3628,95676.0,95675.0,0.00110515]
[1739331138810,0.3638,95676.0,95675.0,0.00010515]
[1739331140615,0.3618,95676.0,95675.0,0.00010515]
[1739331141413,0.3638,95676.0,95675.0,0.00010515]
[1739331142411,0.2091118,95658.0,95650.0,0.2091257]
[1739331143111,0.2091118,95658.0,95652.0,0.2091224]
[1739331143912,0.2101118,95658.0,95656.0,0.38078075]
[1739331144503,0.2101118,95658.0,95656.0,0.37778075]
[1739331144703,0.2101118,95658.0,95656.0,0.38178075]
[1739331145311,0.2101118,95658.0,95656.0,0.37978075]
[1739331145923,0.001,95658.0,95656.0,0.58789385]
[1739331146418,0.001,95658.0,95656.0,0.58689385]
[1739331146619,0.3608,95664.0,95658.0,0.2091097]
[1739331148220,0.3608,95664.0,95658.0,0.2111097]
[1739331148921,0.3608,95664.0,95658.0,0.2121097]
[1739331149307,0.3608,95664.0,95658.0,0.2131097]
[1739331149811,0.3608,95664.0,95658.0,0.2111097]
[1739331150013,0.3618,95664.0,95658.0,0.2181097]
[1739331150616,0.3608,95664.0,95658.0,0.2111097]
[1739331150826,0.3608,95664.0,95658.0,0.2141097]
[1739331151120,0.2091671,95632.0,95630.0,0.00156836]
[1739331151321,0.3608,95631.0,95630.0,0.00156836]
[1739331152622,0.3618,95631.0,95630.0,0.00856836]
[1739331153619,0.3618,95631.0,95630.0,0.01956836]
[1739331154214,0.3628,95631.0,95630.0,0.01956836]
[1739331159819,0.16954526,95631.0,95630.0,0.01956836]
[1739331160329,0.16954526,95631.0,95630.0,0.03068396]
[1739331163223,0.002,95631.0,95630.0,0.60065556]
[1739331163926,0.002,95631.0,95630.0,0.01956836]
[1739331166733,0.0131097,95631.0,95630.0,0.01956836]
[1739331167032,0.002,95631.0,95630.0,0.01956836]
[1739331169633,0.3628,95631.0,95630.0,0.01956836]
[1739331173136,0.3628,95631.0,95630.0,0.018]
[1739331173635,0.3627387,95631.0,95630.0,0.018]
[1739331177337,0.3627387,95631.0,95630.0,0.2271716]
[1739331177737,0.3627387,95631.0,95630.0,0.2946716]
[1739331178729,0.3627387,95631.0,95630.0,0.0855]
[1739331184137,0.3628,95631.0,95630.0,0.0675]
[1739331185043,0.3608,95631.0,95630.0,0.0675]
[1739331186744,0.00015685,95641.0,95630.0,0.0675]
[1739331187046,0.00015685,95641.0,95638.0,0.2091533]
[1739331187231,0.00015685,95641.0,95631.0,0.0652]
[1739331187433,0.12588675,95641.0,95631.0,0.0652]
[1739331187631,0.12588675,95641.0,95630.0,0.0675]
[1739331187835,0.2091666,95633.0,95630.0,0.0705]
[1739331188034,0.2091666,95633.0,95630.0,0.0825]
[1739331188245,0.2091693,95632.0,95630.0,0.0825]
[1739331188446,0.2091693,95632.0,95631.0,0.005]
[1739331190039,0.2091693,95632.0,95630.0,0.0675]
[1739331190245,0.2091693,95632.0,95630.0,0.0825]
[1739331191245,0.2091693,95632.0,95631.0,0.003]
[1739331191446,0.2101693,95632.0,95631.0,0.009]
[1739331191843,0.00152,95654.0,95631.0,0.44148]
[1739331192150,0.3608,95663.0,95642.0,0.1257299]
[1739331192151,0.209139,95645.0,95642.0,0.1257299]
[1739331192340,0.3608,95655.0,95645.0,0.2091382]
[1739331192645,0.3608,95663.0,95650.0,0.2091269]
[1739331192646,0.28069139,95661.0,95650.0,0.2091269]
[1739331192844,0.28069139,95661.0,95651.0,0.1299]
[1739331193147,0.11869776,95652.0,95651.0,0.1299]
[1739331193447,0.28084824,95661.0,95660.0,0.209106]
[1739331193648,0.28084824,95661.0,95660.0,0.283786]
[1739331193942,0.00015685,95661.0,95660.0,0.283786]
[1739331194852,0.00215685,95661.0,95660.0,0.283786]
[1739331196550,0.00715685,95661.0,95660.0,0.29444444]
[1739331203053,0.00515685,95661.0,95660.0,0.30044444]
[1739331203746,0.00115685,95661.0,95660.0,0.31344444]
[1739331204053,0.2090405,95690.0,95683.0,0.2090558]
[1739331204554,0.2760442,95689.0,95683.0,0.2090558]
[1739331204749,0.2760442,95689.0,95684.0,0.2090527]
[1739331204955,0.2090452,95688.0,95684.0,0.2090527]
[1739331205154,0.067,95689.0,95687.0,0.2090456]
[1739331205565,0.2760445,95689.0,95679.0,0.3608]
[1739331205953,0.2760445,95689.0,95682.0,0.2090573]
[1739331206656,0.2800445,95689.0,95682.0,0.2090573]
[1739331207356,0.2760445,95689.0,95682.0,0.2090573]
[1739331207558,0.2760445,95689.0,95682.0,0.2100573]
[1739331207756,0.2760445,95689.0,95682.0,0.2110573]
[1739331208160,0.2760445,95689.0,95682.0,0.2100573]
[1739331208360,0.2760445,95689.0,95682.0,0.2110573]
[1739331209759,0.2760445,95689.0,95683.0,0.07464]
[1739331210764,0.2790445,95689.0,95683.0,0.07464]
[1739331212164,0.07,95689.0,95682.0,0.2090573]
[1739331212551,0.209048,95687.0,95682.0,0.2090573]
[1739331213163,0.3608,95686.0,95676.0,0.00015676]
[1739331213362,0.2090678,95678.0,95676.0,0.00015676]
[1739331213552,0.0707,95677.0,95676.0,0.00015676]
[1739331216965,0.0717,95677.0,95676.0,0.00015676]
[1739331218271,0.0707,95677.0,95676.0,0.00115676]
[1739331219259,0.1312975,95677.0,95676.0,0.00115676]
[1739331220563,0.1312975,95677.0,95676.0,0.00015676]
[1739331221364,0.1312975,95677.0,95676.0,0.00115676]
[1739331222570,0.0707,95677.0,95676.0,0.00115676]
[1739331222972,0.0707,95677.0,95676.0,0.00215676]
[1739331223667,0.0707,95677.0,95676.0,0.00115676]
[1739331224473,0.0707,95677.0,95676.0,0.00215676]
[1739331225867,0.0707,95677.0,95676.0,0.00015676]
[1739331226071,0.0707,95677.0,95676.0,0.00115676]
[1739331226868,0.0707,95677.0,95676.0,0.00215676]
[1739331227770,0.0707,95677.0,95676.0,0.00115676]
[1739331229167,0.0707,95677.0,95676.0,0.00015676]
[1739331229375,0.0707,95677.0,95676.0,0.00215676]
[1739331230679,0.0707,95677.0,95676.0,0.00115676]
[1739331232281,0.0707,95677.0,95676.0,0.00215676]
[1739331233081,0.067,95689.0,95685.0,0.2090497]
[1739331233280,0.0632,95688.0,95685.0,0.2090497]
[1739331235381,0.0692,95688.0,95685.0,0.2090497]
[1739331235982,0.0632,95688.0,95685.0,0.2090497]
[1739331236183,0.0682,95688.0,95685.0,0.2090497]
[1739331237175,0.2090568,95683.0,95677.0,0.0631]
[1739331237373,0.2090568,95683.0,95678.0,0.2090646]
[1739331237578,0.2090568,95683.0,95679.0,0.07464]
[1739331237895,0.3608,95681.0,95676.0,0.00015676]
[1739331238082,0.2090671,95678.0,95676.0,0.00015676]
[1739331238782,0.0791537,95688.0,95676.0,0.00015676]
[1739331238986,0.0791537,95688.0,95677.0,0.001]
[1739331238987,0.2090565,95683.0,95677.0,0.001]
[1739331239183,0.07681191,95682.0,95681.0,0.2090589]
[1739331240581,0.07981191,95682.0,95681.0,0.2090589]
[1739331241985,0.07681191,95682.0,95681.0,0.2090589]
[1739331242289,0.08081191,95682.0,95681.0,0.2090589]
[1739331242786,0.07681191,95682.0,95681.0,0.2090589]
[1739331242990,0.07981191,95682.0,95681.0,0.2090589]
[1739331244988,0.07681191,95682.0,95681.0,0.2090589]
[1739331245189,0.07881191,95682.0,95681.0,0.2090589]
[1739331245389,0.002,95682.0,95681.0,0.2090589]
[1739331246476,0.003,95682.0,95677.0,0.0652]
[1739331246681,0.003,95682.0,95681.0,0.20906]
[1739331248092,0.2722452,95688.0,95682.0,0.209056]
[1739331248485,0.2722452,95688.0,95683.0,0.209055]
[1739331249189,0.2722452,95688.0,95684.0,0.2090528]
[1739331249687,0.2742452,95688.0,95677.0,0.0652]
[1739331249890,0.2782452,95688.0,95685.0,0.2090506]
[1739331250391,0.2782452,95688.0,95677.0,0.0652]
[1739331250601,0.2782452,95688.0,95686.0,0.209049]
[1739331250795,0.2762452,95688.0,95686.0,0.209049]
[1739331251290,0.2722452,95688.0,95686.0,0.209049]
[1739331251499,0.2762452,95688.0,95686.0,0.209049]
[1739331252196,0.2772452,95688.0,95686.0,0.209049]
[1739331252394,0.0682,95688.0,95686.0,0.209049]
[1739331252596,0.0702,95688.0,95686.0,0.209049]
[1739331253099,0.0682,95688.0,95686.0,0.209049]
[1739331253288,0.0702,95688.0,95686.0,0.21957933]
[1739331253691,0.0682,95688.0,95686.0,0.21957933]
[1739331253890,0.0702,95688.0,95686.0,0.21957933]
[1739331254894,0.0652,95688.0,95686.0,0.21957933]
[1739331255093,0.0702,95688.0,95686.0,0.21957933]
[1739331260203,0.007,95688.0,95686.0,0.21957933]
[1739331261800,0.003,95688.0,95686.0,0.22657933]
[1739331262504,0.001,95688.0,95686.0,0.01753033]
[1739331262703,0.001,95688.0,95687.0,0.209047]
[1739331264305,0.001,95688.0,95687.0,0.210047]
[1739331264806,0.209016,95702.0,95695.0,0.2090297]
[1739331266404,0.00115676,95696.0,95695.0,0.2090297]
[1739331267111,0.00215676,95696.0,95695.0,0.2090297]
[1739331269411,0.00115676,95696.0,95695.0,0.2090297]
[1739331269711,0.00215676,95696.0,95695.0,0.2090297]
[1739331271005,0.00115676,95696.0,95695.0,0.2090297]
[1739331271205,0.00215676,95696.0,95695.0,0.2090297]
[1739331274702,0.00148,95720.0,95693.0,0.3608]
[1739331274904,0.068,95718.0,95716.0,0.5697838]
[1739331275209,0.0663,95729.0,95722.0,0.2089707]
[1739331275506,0.41106726,95728.0,95722.0,0.2089707]
[1739331275707,0.41254726,95728.0,95722.0,0.2089707]
[1739331276015,0.41254726,95728.0,95722.0,0.2835707]
[1739331276519,0.003,95723.0,95722.0,0.2835707]
[1739331277008,0.068,95728.0,95722.0,0.0746]
[1739331277215,0.001,95723.0,95722.0,0.2835705]
[1739331277415,0.002,95723.0,95722.0,0.2895705]
[1739331278215,0.001,95723.0,95722.0,0.2885705]
[1739331279202,0.069,95728.0,95722.0,0.0796]
[1739331279408,0.069,95728.0,95727.0,0.5697596]
[1739331280419,0.068,95728.0,95727.0,0.5697596]
[1739331281208,0.068,95728.0,95727.0,0.5707596]
[1739331281817,0.068,95728.0,95727.0,0.5697596]
[1739331282011,0.068,95728.0,95727.0,0.5707596]
[1739331283412,0.068,95728.0,95727.0,0.5697596]
[1739331283611,0.068,95728.0,95727.0,0.5707596]
[1739331284108,0.068,95728.0,95727.0,0.5697596]
[1739331284312,0.068,95728.0,95727.0,0.5707596]
[1739331284922,0.068,95728.0,95727.0,0.3608]
[1739331285122,0.074,95728.0,95727.0,0.3618]
[1739331286725,0.075,95728.0,95727.0,0.3618]
[1739331287025,0.075,95728.0,95727.0,0.001]
[1739331287026,0.4358,95728.0,95727.0,0.001]
[1739331287325,0.4398,95728.0,95727.0,0.001]
[1739331287628,0.6547575,95728.0,95727.0,0.001]
[1739331289325,0.4458,95728.0,95713.0,0.01099221]
[1739331289527,0.2089834,95717.0,95713.0,0.01099221]
[1739331289831,0.208988,95714.0,95713.0,0.00015676]
[1739331290925,0.210988,95714.0,95713.0,0.00015676]
[1739331291128,0.213988,95714.0,95713.0,0.00015676]
[1739331292021,0.005,95714.0,95713.0,0.00015676]
[1739331292925,0.0026,95714.0,95713.0,0.00115676]
[1739331293635,0.3608,95757.0,95731.0,0.2089509]
[1739331293824,0.3608,95748.0,95742.0,0.2089263]
[1739331294131,0.2089397,95737.0,95729.0,0.07456]
[1739331294325,0.3608,95733.0,95727.0,0.2089587]
[1739331294631,0.3608,95733.0,95730.0,0.2089518]
[1739331295131,0.3608,95733.0,95723.0,0.07456]
[1739331295331,0.3608,95733.0,95731.0,0.2089496]
[1739331295928,0.3608,95733.0,95729.0,0.015]
[1739331296622,0.3608,95733.0,95726.0,0.2089607]
[1739331297130,0.3608,95733.0,95723.0,0.07456]
[1739331297332,0.3608,95733.0,95723.0,0.07556]
[1739331297525,0.3608,95733.0,95729.0,0.2089547]
[1739331298531,0.3608,95733.0,95730.0,0.2089526]
[1739331298833,0.569747,95733.0,95730.0,0.2089526]
[1739331300125,0.3628,95733.0,95730.0,0.2089526]
[1739331300320,0.2089497,95732.0,95730.0,0.2089526]
[1739331300735,0.36928,95733.0,95724.0,0.2089659]
[1739331300932,0.3608,95725.0,95724.0,0.2089659]
[1739331303019,0.2089574,95728.0,95724.0,0.2099659]
[1739331303736,0.002,95725.0,95724.0,0.2089661]
[1739331303930,0.004,95725.0,95724.0,0.2089661]
[1739331304230,0.002,95725.0,95724.0,0.2089661]
[1739331304533,0.002,95728.0,95727.0,0.2089598]
[1739331304534,0.004,95728.0,95727.0,0.2089598]
[1739331304728,0.003,95728.0,95727.0,0.2089598]
[1739331305535,0.003,95728.0,95727.0,0.2834798]
[1739331305930,0.003,95728.0,95727.0,0.29405974]
[1739331306238,0.001,95728.0,95727.0,0.29405974]
[1739331306441,0.2211,95735.0,95734.0,0.2089445]
[1739331307232,0.065,95736.0,95734.0,0.2089445]
[1739331307741,0.002,95735.0,95734.0,0.2089445]
[1739331307940,0.005,95735.0,95734.0,0.2089445]
[1739331308127,0.003,95735.0,95734.0,0.2089445]
[1739331308333,0.005,95735.0,95734.0,0.2089445]
[1739331309239,0.002,95735.0,95734.0,0.2089445]
[1739331310339,0.004,95735.0,95734.0,0.2089445]
[1739331310745,0.007,95735.0,95734.0,0.2089445]
[1739331313340,0.005,95735.0,95734.0,0.2089445]
[1739331313848,0.003,95735.0,95734.0,0.2089445]
[1739331314048,0.005,95735.0,95734.0,0.2089445]
[1739331314243,0.002,95735.0,95734.0,0.2089445]
[1739331314439,0.003,95735.0,95734.0,0.2089445]
[1739331314640,0.005,95735.0,95734.0,0.2089445]
[1739331316444,0.005,95735.0,95731.0,0.3608]
[1739331316645,0.2139432,95735.0,95731.0,0.3608]
[1739331317352,0.2139432,95735.0,95730.0,0.208953]
[1739331317650,0.2099432,95735.0,95730.0,0.208953]
[1739331318051,0.2089482,95733.0,95727.0,0.08505994]
[1739331318252,0.2089482,95733.0,95728.0,0.2089556]
[1739331319248,0.2089482,95733.0,95730.0,0.001]
[1739331319945,0.2089482,95733.0,95727.0,0.08505994]
[1739331320147,0.2099482,95733.0,95727.0,0.08505994]
[1739331320654,0.2119482,95733.0,95727.0,0.08505994]
[1739331320842,0.2129482,95733.0,95727.0,0.08505994]
[1739331321243,0.2129482,95733.0,95731.0,0.2089502]
[1739331321449,0.004,95733.0,95731.0,0.2089502]
[1739331322350,0.001,95733.0,95727.0,0.08505994]
[1739331322543,0.001,95733.0,95732.0,0.2089479]
[1739331323056,0.002,95733.0,95727.0,0.08505994]
[1739331323245,0.005,95733.0,95727.0,0.08505994]
[1739331323846,0.002,95733.0,95727.0,0.08505994]
[1739331324046,0.004,95733.0,95727.0,0.08505994]
[1739331324256,0.004,95733.0,95732.0,0.2089487]
[1739331325353,0.002,95733.0,95732.0,0.2089487]
[1739331326055,0.001,95733.0,95728.0,0.2089575]
[1739331326251,0.001,95733.0,95732.0,0.2089487]
[1739331326648,0.005,95733.0,95728.0,0.2089575]
[1739331326855,0.005,95733.0,95732.0,0.2089487]
[1739331327053,0.003,95733.0,95732.0,0.2089487]
[1739331327252,0.004,95733.0,95732.0,0.2089487]
[1739331329562,0.002,95733.0,95732.0,0.2089487]
[1739331329758,0.2089727,95721.0,95720.0,0.00015668]
[1739331329950,0.5697727,95721.0,95720.0,0.00015668]
[1739331331861,0.2089852,95716.0,95710.0,0.3608]
[1739331332162,0.2089852,95716.0,95710.0,0.37164639]
[1739331332567,0.2089946,95711.0,95710.0,0.37164639]
[1739331332951,0.2089946,95711.0,95710.0,0.38364639]
[1739331333458,0.2089946,95711.0,95710.0,0.38764639]
[1739331333857,0.2089946,95711.0,95710.0,0.38364639]
[1739331334062,0.2089946,95711.0,95710.0,0.38764639]
[1739331334657,0.2089946,95711.0,95710.0,0.37564639]
[1739331334861,0.2099946,95711.0,95710.0,0.38764639]
[1739331341569,0.2099946,95711.0,95710.0,0.3768]
[1739331341768,0.2099946,95711.0,95710.0,0.016]
[1739331344167,0.2090055,95706.0,95705.0,0.00156721]
[1739331344971,0.2090142,95702.0,95701.0,0.00015668]
[1739331346571,0.2090142,95702.0,95701.0,0.00415668]
[1739331348063,0.2100142,95702.0,95701.0,0.00415668]
[1739331351366,0.2747142,95702.0,95701.0,0.00415668]
[1739331362775,0.2100142,95702.0,95701.0,0.00415668]
[1739331363884,0.001,95702.0,95701.0,0.00415668]
[1739331364081,0.001,95702.0,95701.0,0.14719668]
[1739331365486,0.001,95702.0,95701.0,0.15789131]
[1739331366482,0.2100144,95702.0,95701.0,0.15789131]
[1739331367684,0.2100144,95702.0,95701.0,0.08345131]
[1739331367982,0.2100144,95702.0,95701.0,0.01485131]
[1739331368379,0.2100144,95702.0,95701.0,0.00415668]
[1739331368778,0.2759144,95702.0,95701.0,0.00415668]
[1739331368982,0.2675144,95702.0,95701.0,0.00415668]
[1739331369280,0.2685144,95702.0,95701.0,0.00915668]
[1739331369472,0.2685144,95702.0,95701.0,0.00515668]
[1739331370077,0.2685144,95702.0,95688.0,0.0667]
[1739331370078,0.2090492,95686.0,95676.0,0.0647]
[1739331370386,0.2090492,95686.0,95672.0,0.0647]
[1739331370776,0.3608,95693.0,95672.0,0.0647]
[1739331370777,0.2090666,95678.0,95672.0,0.0647]
[1739331371176,0.2090666,95678.0,95677.0,0.37142986]
[1739331371489,0.2090666,95678.0,95677.0,0.3608]
[1739331372985,0.2090666,95678.0,95677.0,0.3628]
[1739331373486,0.2100666,95678.0,95677.0,0.3648]
[1739331375385,0.001,95678.0,95677.0,0.3648]
[1739331376388,0.00015676,95687.0,95677.0,0.3648]
[1739331376580,0.3608,95703.0,95686.0,0.3608]
[1739331376779,0.3608,95703.0,95690.0,0.12590444]
[1739331376780,0.5698134,95703.0,95690.0,0.12590444]
[1739331377093,0.57137341,95703.0,95690.0,0.12590444]
[1739331377286,0.00156001,95703.0,95690.0,0.12590444]
[1739331377487,0.2090154,95702.0,95690.0,0.12590444]
[1739331378788,0.2090154,95702.0,95692.0,0.3608]
[1739331379785,0.2090154,95702.0,95693.0,0.0709]
[1739331381288,0.00015676,95705.0,95693.0,0.0709]
[1739331381488,0.2090191,95700.0,95693.0,0.0709]
[1739331382687,0.2090191,95700.0,95693.0,0.0719]
[1739331382888,0.2090191,95700.0,95693.0,0.2809327]
[1739331383288,0.2110191,95700.0,95693.0,0.2799327]
[1739331385388,0.2110191,95700.0,95693.0,0.0709]
[1739331385687,0.2090191,95700.0,95693.0,0.0739]
[1739331386191,0.2090234,95698.0,95693.0,0.0729]
[1739331386390,0.2090234,95698.0,95693.0,0.0709]
[1739331387779,0.001,95700.0,95694.0,0.2090315]
[1739331387978,0.2090151,95702.0,95694.0,0.2090315]
[1739331388199,0.00015676,95705.0,95694.0,0.2090315]
[1739331388394,0.2090172,95701.0,95694.0,0.2090315]
[1739331390093,0.00015676,95705.0,95699.0,0.2090204]
[1739331391984,0.00015676,95705.0,95699.0,0.2100204]
[1739331392190,0.00415676,95705.0,95699.0,0.2100204]
[1739331392993,0.00615676,95705.0,95699.0,0.2100204]
[1739331393990,0.00415676,95705.0,95704.0,0.2090098]
[1739331395198,0.00015676,95705.0,95704.0,0.2090098]
[1739331395898,0.00415676,95705.0,95704.0,0.2100098]
[1739331396287,0.00615676,95705.0,95704.0,0.2100098]
[1739331396589,0.00615676,95705.0,95704.0,0.22089956]
[1739331396789,0.00515676,95705.0,95704.0,0.22089956]
[1739331397890,0.00115676,95705.0,95704.0,0.21989956]
[1739331398091,0.00515676,95705.0,95704.0,0.21989956]
[1739331398994,0.00615676,95705.0,95704.0,0.21989956]
[1739331399194,0.00215676,95705.0,95704.0,0.21989956]
[1739331399389,0.00515676,95705.0,95704.0,0.21989956]
[1739331399589,0.00415676,95705.0,95704.0,0.21989956]
[1739331400098,0.00415676,95705.0,95704.0,0.01088976]
[1739331400286,0.00415676,95705.0,95697.0,0.2833845]
[1739331400493,0.2090145,95702.0,95698.0,0.2090228]
[1739331400690,0.2090145,95702.0,95699.0,0.2090206]
[1739331401201,0.2090145,95702.0,95700.0,0.2090182]
[1739331402195,0.2140145,95702.0,95700.0,0.2090182]
[1739331403203,0.2150145,95702.0,95700.0,0.2090182]
[1739331403599,0.2140145,95702.0,95700.0,0.2090182]
[1739331403798,0.2160145,95702.0,95700.0,0.2090182]
[1739331404495,0.2130145,95702.0,95700.0,0.2090182]
[1739331404703,0.004,95702.0,95700.0,0.5698182]
[1739331405092,0.002,95702.0,95700.0,0.5698182]
[1739331405307,0.008,95702.0,95700.0,0.5708182]
[1739331406603,0.007,95702.0,95700.0,0.5708182]
[1739331406804,0.001,95702.0,95700.0,0.5698182]
[1739331407198,0.001,95702.0,95701.0,0.2090163]
[1739331408200,0.002,95702.0,95701.0,0.2090163]
[1739331409113,0.001,95702.0,95701.0,0.2090163]
[1739331409894,0.00015676,95705.0,95704.0,0.2090099]
[1739331411706,0.00115676,95705.0,95704.0,0.2130099]
[1739331412711,0.00115676,95705.0,95704.0,0.2150099]
[1739331413213,0.00115676,95705.0,95704.0,0.2170099]
[1739331414019,0.00115676,95705.0,95704.0,0.2160099]
[1739331414808,0.00015676,95705.0,95704.0,0.2150099]
[1739331415006,0.00015676,95705.0,95704.0,0.2130099]
[1739331415305,0.00015676,95705.0,95704.0,0.22583964]
[1739331416315,0.00115676,95705.0,95704.0,0.22783964]
[1739331417908,0.00015676,95705.0,95704.0,0.22383964]
[1739331419115,0.00015676,95705.0,95704.0,0.22283964]
[1739331419425,0.00015676,95705.0,95704.0,0.22383964]
[1739331419616,0.00015676,95705.0,95704.0,0.22283964]
[1739331420514,0.00015676,95705.0,95704.0,0.22183964]
[1739331421620,0.00015676,95705.0,95704.0,0.21983964]
[1739331421819,0.00015676,95705.0,95704.0,0.22183964]
[1739331422908,0.00015676,95705.0,95704.0,0.22283964]
[1739331423214,0.0661,95719.0,95704.0,0.22283964]
[1739331423215,0.3608,95738.0,95704.0,0.01382974]
[1739331423418,0.0653,95729.0,95723.0,0.2089683]
[1739331423617,0.0653,95729.0,95723.0,0.2832483]
[1739331425018,0.3638,95724.0,95723.0,0.2832483]
[1739331425517,0.3628,95724.0,95723.0,0.2832483]
[1739331425718,0.3638,95724.0,95723.0,0.29415669]
[1739331426512,0.3618,95724.0,95723.0,0.29415669]
[1739331426711,0.3638,95724.0,95723.0,0.29415669]
[1739331427419,0.3618,95724.0,95723.0,0.29415669]
[1739331427615,0.3628,95724.0,95723.0,0.29415669]
[1739331427918,0.3638,95724.0,95723.0,0.29415669]
[1739331428712,0.3628,95724.0,95723.0,0.29415669]
[1739331428914,0.3638,95724.0,95723.0,0.29415669]
[1739331429715,0.3618,95724.0,95723.0,0.01090839]
[1739331429914,0.3638,95724.0,95723.0,0.07428]
[1739331433123,0.3648,95724.0,95723.0,0.07428]
[1739331433811,0.3688,95724.0,95723.0,0.07528]
[1739331434221,0.3678,95724.0,95723.0,0.07528]
[1739331434517,0.3698,95724.0,95723.0,0.07528]
[1739331434923,0.3708,95724.0,95723.0,0.07528]
[1739331437725,0.01,95724.0,95723.0,0.07528]
[1739331442625,0.03857513,95727.0,95723.0,0.07528]
[1739331442827,0.0653,95729.0,95723.0,0.07528]
[1739331443223,0.2089609,95727.0,95723.0,0.07528]
[1739331443625,0.2089609,95727.0,95723.0,0.07428]
[1739331443831,0.007,95727.0,95723.0,0.2842477]
[1739331445132,0.008,95727.0,95723.0,0.2842477]
[1739331445633,0.01,95727.0,95723.0,0.2842477]
[1739331446025,0.003,95727.0,95723.0,0.2832477]
[1739331446930,0.007,95727.0,95723.0,0.2832477]
[1739331448923,0.007,95727.0,95724.0,0.2089658]
[1739331449235,0.002,95727.0,95724.0,0.2089658]
[1739331449450,0.007,95727.0,95724.0,0.2089658]
[1739331449952,0.007,95727.0,95725.0,0.2089626]
[1739331450151,0.006,95727.0,95725.0,0.2089626]
[1739331451450,0.007,95727.0,95725.0,0.2089626]
[1739331451654,0.009,95727.0,95725.0,0.2089626]
[1739331452047,0.008,95727.0,95725.0,0.2089626]
[1739331452447,0.002,95727.0,95725.0,0.2089626]
[1739331452647,0.007,95727.0,95725.0,0.2099626]
[1739331453245,0.002,95727.0,95725.0,0.2089626]
[1739331453442,0.008,95727.0,95725.0,0.2099626]
[1739331453849,0.006,95727.0,95725.0,0.2099626]
[1739331454045,0.009,95727.0,95725.0,0.2099626]
[1739331454550,0.006,95727.0,95725.0,0.22040234]
[1739331454853,0.009,95727.0,95725.0,0.22040234]
[1739331455250,0.003,95727.0,95725.0,0.21940234]
[1739331455444,0.008,95727.0,95725.0,0.22040234]
[1739331456154,0.009,95727.0,95725.0,0.22040234]
[1739331457149,0.006,95727.0,95725.0,0.22040234]
[1739331457355,0.008,95727.0,95725.0,0.22040234]
[1739331458254,0.2109612,95727.0,95725.0,0.21940234]
[1739331458460,0.2159612,95727.0,95725.0,0.01143974]
[1739331458958,0.2159612,95727.0,95725.0,0.001]
[1739331459858,0.2139612,95727.0,95725.0,0.001]
[1739331460154,0.2159612,95727.0,95725.0,0.001]
[1739331473162,0.07678139,95726.0,95725.0,0.001]
[1739331474561,0.07878139,95726.0,95725.0,0.001]
[1739331475365,0.08378139,95726.0,95725.0,0.001]
[1739331476155,0.08478139,95726.0,95725.0,0.001]
[1739331477064,0.08578139,95726.0,95725.0,0.001]
[1739331477466,0.2089858,95715.0,95707.0,0.07412]
[1739331477666,0.5697858,95715.0,95707.0,0.07412]
[1739331477960,0.5697858,95715.0,95706.0,0.01058564]
[1739331478560,0.5697858,95715.0,95714.0,0.00215676]
[1739331478960,0.2089986,95710.0,95703.0,0.21057896]
[1739331479170,0.0694,95709.0,95703.0,0.21057896]
[1739331479464,0.0694,95709.0,95703.0,0.00156716]
[1739331479669,0.0694,95709.0,95704.0,0.2090089]
[1739331480963,0.0694,95709.0,95704.0,0.2210089]
[1739331480964,0.0704,95709.0,95704.0,0.2210089]
[1739331481768,0.0704,95709.0,95704.0,0.012]
[1739331481958,0.001,95709.0,95707.0,0.209002]
[1739331482269,0.001,95709.0,95708.0,0.07412]
[1739331483166,0.3608,95715.0,95708.0,0.07412]
[1739331483363,0.3608,95715.0,95714.0,0.2089882]
[1739331484971,0.3608,95715.0,95714.0,0.2099882]
[1739331485975,0.3608,95715.0,95714.0,0.2109882]
[1739331486364,0.3608,95715.0,95714.0,0.2099882]
[1739331488675,0.3608,95715.0,95714.0,0.22070624]
[1739331490475,0.3618,95715.0,95714.0,0.21970624]
[1739331491076,0.3608,95715.0,95714.0,0.21970624]
[1739331491275,0.3608,95715.0,95714.0,0.22070624]
[1739331492473,0.3618,95715.0,95714.0,0.22070624]
[1739331492876,0.002,95715.0,95714.0,0.29378624]
[1739331493082,0.001,95715.0,95714.0,0.29378624]
[1739331493780,0.0675,95731.0,95724.0,0.2089658]
[1739331494178,0.0675,95731.0,95725.0,0.2089636]
[1739331495979,0.3628,95727.0,95725.0,0.2089636]
[1739331496184,0.3688,95727.0,95725.0,0.2099636]
[1739331497180,0.3688,95727.0,95725.0,0.001]
[1739331498283,0.3688,95727.0,95725.0,0.2099636]
[1739331499381,0.3668,95727.0,95725.0,0.2099636]
[1739331499576,0.3688,95727.0,95725.0,0.2099636]
[1739331499780,0.3628,95727.0,95725.0,0.21941508]
[1739331499981,0.3668,95727.0,95725.0,0.22041508]